[Event "Titled Tuesday Blitz August 22 Early 2023"]
[White "Paravyan, David"]
[Black "Shoker, Samy"]
[WhiteFideId "4194985"]
[BlackFideId "627143"]
[WhiteElo "2968"]
[BlackElo "2716"]
[Result "1-0"]
[Round "7"]
[TimeControl "180+1"]
[Date "2023.08.22"]
[WhiteClock "0:00:10"]
[BlackClock "0:00:08"]
[Board "26"]

1. Nf3 {[%clk 0:03:00]}  Nf6 {[%clk 0:02:54]} 2. c4 {[%clk 0:03:00]}  d6 {[%clk 0:02:54]} 3. d4 {[%clk 0:02:59]}  g6 {[%clk 0:02:53]} 4. Nc3 {[%clk 0:02:59]}  Bf5 {[%clk 0:02:54]} 5. Qb3 {[%clk 0:02:58]}  b6 {[%clk 0:02:53]} 6. g3 {[%clk 0:02:55]}  Nc6 {[%clk 0:02:53]} 7. Bg2 {[%clk 0:02:55]}  Bg7 {[%clk 0:02:54]} 8. O-O {[%clk 0:02:50]}  O-O {[%clk 0:02:54]} 9. a3 {[%clk 0:02:46]}  Na5 {[%clk 0:02:47]} 10. Qa2 {[%clk 0:02:46]}  c5 {[%clk 0:02:47]} 11. b4 {[%clk 0:02:45]}  Nc6 {[%clk 0:02:45]} 12. dxc5 {[%clk 0:02:42]}  bxc5 {[%clk 0:02:40]} 13. bxc5 {[%clk 0:02:37]}  dxc5 {[%clk 0:02:37]} 14. Rd1 {[%clk 0:02:34]}  Qa5 {[%clk 0:02:31]} 15. Bd2 {[%clk 0:02:32]}  Rad8 {[%clk 0:02:26]} 16. Nd5 {[%clk 0:02:30]}  Qa6 {[%clk 0:02:23]} 17. Bc3 {[%clk 0:02:26]}  Nxd5 {[%clk 0:02:13]} 18. Bxg7 {[%clk 0:02:24]}  Kxg7 {[%clk 0:01:52]} 19. cxd5 {[%clk 0:02:23]}  Na5 {[%clk 0:01:52]} 20. Rac1 {[%clk 0:02:19]}  c4 {[%clk 0:01:47]} 21. Ne5 {[%clk 0:02:14]}  Rc8 {[%clk 0:01:25]} 22. e4 {[%clk 0:02:12]}  f6 {[%clk 0:01:17]} 23. Nxc4 {[%clk 0:01:58]}  Nxc4 {[%clk 0:01:15]} 24. exf5 {[%clk 0:01:57]}  Qxa3 {[%clk 0:01:11]} 25. Qxa3 {[%clk 0:01:33]}  Nxa3 {[%clk 0:01:12]} 26. Ra1 {[%clk 0:01:34]}  Nb5 {[%clk 0:01:12]} 27. Bf1 {[%clk 0:01:34]}  Nc3 {[%clk 0:01:08]} 28. Re1 {[%clk 0:01:31]}  Rc7 {[%clk 0:01:03]} 29. fxg6 {[%clk 0:01:30]}  hxg6 {[%clk 0:01:00]} 30. Ra5 {[%clk 0:01:30]}  Rd8 {[%clk 0:00:58]} 31. Bg2 {[%clk 0:01:30]}  Rd6 {[%clk 0:00:47]} 32. h4 {[%clk 0:01:29]}  a6 {[%clk 0:00:47]} 33. Bf3 {[%clk 0:01:26]}  Nb5 {[%clk 0:00:46]} 34. Re4 {[%clk 0:01:10]}  Rxd5 {[%clk 0:00:41]} 35. Rxe7+ {[%clk 0:01:09]}  Rxe7 {[%clk 0:00:42]} 36. Bxd5 {[%clk 0:01:10]}  Nc7 {[%clk 0:00:42]} 37. Bc4 {[%clk 0:01:06]}  Re5 {[%clk 0:00:42]} 38. Ra2 {[%clk 0:00:53]}  a5 {[%clk 0:00:41]} 39. Rd2 {[%clk 0:00:53]}  Rc5 {[%clk 0:00:37]} 40. Rd7+ {[%clk 0:00:53]}  Kf8 {[%clk 0:00:21]} 41. Bf7 {[%clk 0:00:53]}  a4 {[%clk 0:00:18]} 42. Bxg6 {[%clk 0:00:53]}  a3 {[%clk 0:00:18]} 43. Bf7 {[%clk 0:00:45]}  Nb5 {[%clk 0:00:16]} 44. Bb3 {[%clk 0:00:29]}  Rc3 {[%clk 0:00:16]} 45. Be6 {[%clk 0:00:24]}  Nc7 {[%clk 0:00:13]} 46. Bf7 {[%clk 0:00:23]}  Nb5 {[%clk 0:00:12]} 47. Be6 {[%clk 0:00:20]}  Nc7 {[%clk 0:00:12]} 48. Ba2 {[%clk 0:00:20]}  Rc2 {[%clk 0:00:12]} 49. h5 {[%clk 0:00:20]}  Rxa2 {[%clk 0:00:11]} 50. Rxc7 {[%clk 0:00:21]}  Rb2 {[%clk 0:00:11]} 51. Ra7 {[%clk 0:00:21]}  a2 {[%clk 0:00:12]} 52. Kg2 {[%clk 0:00:21]}  Kg8 {[%clk 0:00:09]} 53. g4 {[%clk 0:00:20]}  Rb4 {[%clk 0:00:08]} 54. Kg3 {[%clk 0:00:17]}  Rb3+ {[%clk 0:00:08]} 55. f3 {[%clk 0:00:16]}  Rb2 {[%clk 0:00:09]} 56. Kf4 {[%clk 0:00:17]}  Kf8 {[%clk 0:00:08]} 57. Kf5 {[%clk 0:00:17]}  Rf2 {[%clk 0:00:09]} 58. f4 {[%clk 0:00:14]}  Kg8 {[%clk 0:00:07]} 59. Kg6 {[%clk 0:00:14]}  Kf8 {[%clk 0:00:07]} 60. f5 {[%clk 0:00:06]}  Rg2 {[%clk 0:00:07]} 61. Kxf6 {[%clk 0:00:06]}  Ke8 {[%clk 0:00:07]} 62. g5 {[%clk 0:00:07]}  Rb2 {[%clk 0:00:07]} 63. g6 {[%clk 0:00:07]}  Rb6+ {[%clk 0:00:07]} 64. Kg5 {[%clk 0:00:08]}  Rb7 {[%clk 0:00:06]} 65. Rxa2 {[%clk 0:00:07]}  Rb1 {[%clk 0:00:06]} 66. Rg2 {[%clk 0:00:07]}  Kf8 {[%clk 0:00:07]} 67. Rg4 {[%clk 0:00:07]}  Kg8 {[%clk 0:00:07]} 68. h6 {[%clk 0:00:08]}  Rb7 {[%clk 0:00:07]} 69. Re4 {[%clk 0:00:08]}  Rb8 {[%clk 0:00:07]} 70. Re6 {[%clk 0:00:09]}  Kh8 {[%clk 0:00:08]} 71. Kf6 {[%clk 0:00:09]}  Rf8+ {[%clk 0:00:08]} 72. Ke5 {[%clk 0:00:10]}  Rg8 {[%clk 0:00:09]} 73. Rd6 {[%clk 0:00:10]}  Re8+ {[%clk 0:00:09]} 74. Kf6 {[%clk 0:00:11]}  Rg8 {[%clk 0:00:10]} 75. Ke7 {[%clk 0:00:09]}  Ra8 {[%clk 0:00:09]} 76. Rd8+ {[%clk 0:00:09]}  Rxd8 {[%clk 0:00:08]} 77. Kxd8 {[%clk 0:00:10]} 1-0


[Site "https://www.chess.com"]

[Event "Titled Tuesday Blitz August 22 Early 2023"]
[White "Zakhartsov, Vladimir"]
[Black "Gubajdullin, Alexei"]
[WhiteFideId "4145097"]
[BlackFideId "4141202"]
[WhiteElo "2911"]
[BlackElo "2681"]
[Result "1-0"]
[Round "7"]
[TimeControl "180+1"]
[Date "2023.08.22"]
[WhiteClock "0:00:14"]
[BlackClock "0:00:13"]
[Board "28"]

1. e4 {[%clk 0:03:00]}  g6 {[%clk 0:02:57]} 2. d4 {[%clk 0:02:59]}  d6 {[%clk 0:02:57]} 3. Nc3 {[%clk 0:02:59]}  a6 {[%clk 0:02:58]} 4. f4 {[%clk 0:02:56]}  Bg7 {[%clk 0:02:55]} 5. Nf3 {[%clk 0:02:53]}  b5 {[%clk 0:02:51]} 6. Bd3 {[%clk 0:02:52]}  Nd7 {[%clk 0:02:44]} 7. a4 {[%clk 0:02:50]}  b4 {[%clk 0:02:34]} 8. Nd5 {[%clk 0:02:50]}  a5 {[%clk 0:02:04]} 9. f5 {[%clk 0:02:48]}  Ngf6 {[%clk 0:01:56]} 10. Nxf6+ {[%clk 0:02:47]}  Bxf6 {[%clk 0:01:53]} 11. Bh6 {[%clk 0:02:45]}  c5 {[%clk 0:01:53]} 12. e5 {[%clk 0:02:11]}  dxe5 {[%clk 0:01:51]} 13. dxe5 {[%clk 0:02:08]}  Nxe5 {[%clk 0:01:50]} 14. Nxe5 {[%clk 0:02:06]}  Bxe5 {[%clk 0:01:47]} 15. Bb5+ {[%clk 0:02:06]}  Bd7 {[%clk 0:01:46]} 16. Qe2 {[%clk 0:02:06]}  Bxb2 {[%clk 0:01:23]} 17. Rd1 {[%clk 0:01:53]}  Bc3+ {[%clk 0:01:22]} 18. Kf1 {[%clk 0:01:44]}  Ra7 {[%clk 0:01:16]} 19. Rd5 {[%clk 0:01:14]}  Qb6 {[%clk 0:01:04]} 20. Bc4 {[%clk 0:00:50]}  Bxf5 {[%clk 0:00:49]} 21. g4 {[%clk 0:00:39]}  Bd7 {[%clk 0:00:44]} 22. Kf2 {[%clk 0:00:36]}  Bc6 {[%clk 0:00:39]} 23. Rhd1 {[%clk 0:00:31]}  Bd4+ {[%clk 0:00:39]} 24. R1xd4 {[%clk 0:00:22]}  cxd4 {[%clk 0:00:37]} 25. Qe5 {[%clk 0:00:23]}  d3+ {[%clk 0:00:31]} 26. Be3 {[%clk 0:00:22]}  f6 {[%clk 0:00:21]} 27. Qe6 {[%clk 0:00:20]}  Qb7 {[%clk 0:00:15]} 28. Rxd3 {[%clk 0:00:15]}  Ra8 {[%clk 0:00:13]} 29. Qf7# {[%clk 0:00:14]} 1-0


[Site "https://www.chess.com"]

[Event "Titled Tuesday Blitz August 22 Early 2023"]
[White "Mendez Fortes, Eduardo Jesus"]
[Black "Elsa167"]
[WhiteFideId "3502376"]
[WhiteElo "2643"]
[BlackElo "2867"]
[Result "0-1"]
[Round "7"]
[TimeControl "180+1"]
[Date "2023.08.22"]
[WhiteClock "0:00:00"]
[BlackClock "0:02:44"]
[Board "32"]

1. e4 {[%clk 0:03:00]}  e6 {[%clk 0:02:58]} 2. d4 {[%clk 0:03:00]}  d5 {[%clk 0:02:59]} 3. Nd2 {[%clk 0:03:01]}  c5 {[%clk 0:02:56]} 4. exd5 {[%clk 0:03:01]}  Qxd5 {[%clk 0:02:57]} 5. Ngf3 {[%clk 0:03:02]}  cxd4 {[%clk 0:02:56]} 6. Bc4 {[%clk 0:03:03]}  Qd7 {[%clk 0:02:57]} 7. O-O {[%clk 0:03:04]}  a6 {[%clk 0:02:56]} 8. Nb3 {[%clk 0:03:04]}  Nc6 {[%clk 0:02:50]} 9. Nbxd4 {[%clk 0:03:04]}  Nxd4 {[%clk 0:02:51]} 10. Nxd4 {[%clk 0:03:04]}  Qc7 {[%clk 0:02:51]} 11. Qe2 {[%clk 0:03:03]}  Bd6 {[%clk 0:02:51]} 12. Re1 {[%clk 0:00:00]}  Ne7 {[%clk 0:02:44]} 0-1


[Site "https://www.chess.com"]

[Event "Titled Tuesday Blitz August 22 Early 2023"]
[White "Durarbayli, Vasif"]
[Black "Jaskolka, Tomasz"]
[WhiteFideId "13402935"]
[BlackFideId "1170791"]
[WhiteElo "2855"]
[BlackElo "2549"]
[Result "1-0"]
[Round "7"]
[TimeControl "180+1"]
[Date "2023.08.22"]
[WhiteClock "0:01:37"]
[BlackClock "0:00:00"]
[Board "34"]

1. e4 {[%clk 0:03:00]}  d5 {[%clk 0:02:59]} 2. d3 {[%clk 0:02:59]}  e5 {[%clk 0:02:56]} 3. Nf3 {[%clk 0:02:58]}  Nc6 {[%clk 0:02:55]} 4. Be2 {[%clk 0:02:58]}  Nf6 {[%clk 0:02:54]} 5. Nbd2 {[%clk 0:02:58]}  Bc5 {[%clk 0:02:53]} 6. c3 {[%clk 0:02:58]}  a5 {[%clk 0:02:53]} 7. O-O {[%clk 0:02:57]}  O-O {[%clk 0:02:53]} 8. b3 {[%clk 0:02:57]}  d4 {[%clk 0:02:49]} 9. Bb2 {[%clk 0:02:57]}  dxc3 {[%clk 0:02:49]} 10. Bxc3 {[%clk 0:02:58]}  Re8 {[%clk 0:02:46]} 11. h3 {[%clk 0:02:57]}  Nd4 {[%clk 0:02:46]} 12. Nxd4 {[%clk 0:02:54]}  Bxd4 {[%clk 0:02:46]} 13. Rc1 {[%clk 0:02:49]}  Bxc3 {[%clk 0:02:44]} 14. Rxc3 {[%clk 0:02:50]}  c6 {[%clk 0:02:44]} 15. Nc4 {[%clk 0:02:47]}  Be6 {[%clk 0:02:27]} 16. Ne3 {[%clk 0:02:47]}  a4 {[%clk 0:02:23]} 17. bxa4 {[%clk 0:02:45]}  Qa5 {[%clk 0:02:21]} 18. Ra3 {[%clk 0:02:45]}  Red8 {[%clk 0:02:12]} 19. Qa1 {[%clk 0:02:42]}  Qb4 {[%clk 0:02:05]} 20. Nc2 {[%clk 0:02:42]}  Qc5 {[%clk 0:02:05]} 21. Rc1 {[%clk 0:02:37]}  Qd6 {[%clk 0:01:39]} 22. Qb2 {[%clk 0:02:35]}  h6 {[%clk 0:01:21]} 23. a5 {[%clk 0:02:33]}  Nd7 {[%clk 0:01:13]} 24. d4 {[%clk 0:02:29]}  exd4 {[%clk 0:01:10]} 25. Qxd4 {[%clk 0:02:26]}  Nc5 {[%clk 0:01:05]} 26. Qxd6 {[%clk 0:02:25]}  Rxd6 {[%clk 0:01:06]} 27. f3 {[%clk 0:02:21]}  f5 {[%clk 0:00:56]} 28. exf5 {[%clk 0:02:18]}  Bxf5 {[%clk 0:00:57]} 29. Ne3 {[%clk 0:02:18]}  Bd3 {[%clk 0:00:50]} 30. Bxd3 {[%clk 0:02:10]}  Rxd3 {[%clk 0:00:46]} 31. Rxd3 {[%clk 0:02:08]}  Nxd3 {[%clk 0:00:47]} 32. Rc3 {[%clk 0:02:08]}  Nf4 {[%clk 0:00:41]} 33. Ra3 {[%clk 0:02:08]}  Kf7 {[%clk 0:00:39]} 34. Nc4 {[%clk 0:02:05]}  Ke6 {[%clk 0:00:30]} 35. Re3+ {[%clk 0:02:06]}  Kf6 {[%clk 0:00:26]} 36. Rb3 {[%clk 0:02:06]}  Ra7 {[%clk 0:00:23]} 37. Kf2 {[%clk 0:01:59]}  Nd5 {[%clk 0:00:23]} 38. h4 {[%clk 0:01:52]}  Ke6 {[%clk 0:00:23]} 39. h5 {[%clk 0:01:52]}  Kd7 {[%clk 0:00:22]} 40. g4 {[%clk 0:01:51]}  Kc7 {[%clk 0:00:22]} 41. Kg3 {[%clk 0:01:51]}  Ra8 {[%clk 0:00:21]} 42. Rb2 {[%clk 0:01:48]}  Re8 {[%clk 0:00:20]} 43. Rxb7+ {[%clk 0:01:47]}  Kxb7 {[%clk 0:00:18]} 44. Nd6+ {[%clk 0:01:47]}  Ka6 {[%clk 0:00:19]} 45. Nxe8 {[%clk 0:01:48]}  Kxa5 {[%clk 0:00:19]} 46. Nxg7 {[%clk 0:01:48]}  c5 {[%clk 0:00:19]} 47. Nf5 {[%clk 0:01:43]}  c4 {[%clk 0:00:19]} 48. Nxh6 {[%clk 0:01:37]}  c3 {[%clk 0:00:17]} 49. Nf5 {[%clk 0:01:37]}  c2 {[%clk 0:00:11]} 50. Nd4 {[%clk 0:01:38]}  c1=N {[%clk 0:00:00]} 51. h6 {[%clk 0:01:37]} 1-0


[Site "https://www.chess.com"]

[Event "Titled Tuesday Blitz August 22 Early 2023"]
[White "Gontcharov, Vladislav"]
[Black "Drygalov, Sergey"]
[WhiteFideId "4123492"]
[BlackFideId "24171743"]
[WhiteElo "2564"]
[BlackElo "2957"]
[Result "1/2-1/2"]
[Round "7"]
[TimeControl "180+1"]
[Date "2023.08.22"]
[WhiteClock "0:00:31"]
[BlackClock "0:00:14"]
[Board "36"]

1. d4 {[%clk 0:03:00]}  Nf6 {[%clk 0:03:00]} 2. c4 {[%clk 0:02:59]}  e6 {[%clk 0:03:00]} 3. Nf3 {[%clk 0:02:59]}  d5 {[%clk 0:03:00]} 4. Nc3 {[%clk 0:02:58]}  c6 {[%clk 0:03:00]} 5. e3 {[%clk 0:02:57]}  Nbd7 {[%clk 0:03:00]} 6. Bd3 {[%clk 0:02:55]}  dxc4 {[%clk 0:03:00]} 7. Bxc4 {[%clk 0:02:56]}  b5 {[%clk 0:03:01]} 8. Bd3 {[%clk 0:02:56]}  Bd6 {[%clk 0:03:02]} 9. O-O {[%clk 0:02:47]}  Bb7 {[%clk 0:03:02]} 10. a4 {[%clk 0:02:46]}  a6 {[%clk 0:03:01]} 11. Ne4 {[%clk 0:02:43]}  Nxe4 {[%clk 0:03:01]} 12. Bxe4 {[%clk 0:02:44]}  Nf6 {[%clk 0:03:01]} 13. Nd2 {[%clk 0:02:44]}  Nxe4 {[%clk 0:02:53]} 14. Nxe4 {[%clk 0:02:43]}  Bxh2+ {[%clk 0:02:54]} 15. Kxh2 {[%clk 0:02:33]}  Qh4+ {[%clk 0:02:55]} 16. Kg1 {[%clk 0:02:31]}  Qxe4 {[%clk 0:02:55]} 17. f3 {[%clk 0:02:26]}  Qg6 {[%clk 0:02:56]} 18. e4 {[%clk 0:02:21]}  O-O {[%clk 0:02:55]} 19. Be3 {[%clk 0:02:20]}  f5 {[%clk 0:02:55]} 20. Qc2 {[%clk 0:02:03]}  fxe4 {[%clk 0:02:49]} 21. Qxe4 {[%clk 0:02:02]}  Qxe4 {[%clk 0:02:11]} 22. fxe4 {[%clk 0:02:02]}  Rxf1+ {[%clk 0:02:12]} 23. Kxf1 {[%clk 0:02:01]}  h6 {[%clk 0:02:08]} 24. Ke2 {[%clk 0:01:54]}  a5 {[%clk 0:02:00]} 25. g3 {[%clk 0:01:44]}  Kf7 {[%clk 0:01:43]} 26. Bd2 {[%clk 0:01:34]}  b4 {[%clk 0:01:41]} 27. Rc1 {[%clk 0:01:33]}  c5 {[%clk 0:01:35]} 28. dxc5 {[%clk 0:01:20]}  Bxe4 {[%clk 0:01:32]} 29. c6 {[%clk 0:01:20]}  Ke7 {[%clk 0:01:21]} 30. Bf4 {[%clk 0:01:19]}  g5 {[%clk 0:01:08]} 31. Be5 {[%clk 0:01:14]}  h5 {[%clk 0:01:08]} 32. c7 {[%clk 0:01:14]}  Kd7 {[%clk 0:01:08]} 33. Ke3 {[%clk 0:01:10]}  Bd5 {[%clk 0:01:07]} 34. Rf1 {[%clk 0:01:08]}  Bb3 {[%clk 0:01:00]} 35. Kd4 {[%clk 0:00:55]}  Kc6 {[%clk 0:00:56]} 36. Rc1+ {[%clk 0:00:52]}  Kb7 {[%clk 0:00:55]} 37. Rf1 {[%clk 0:00:47]}  Bxa4 {[%clk 0:00:53]} 38. Kc5 {[%clk 0:00:47]}  Bc6 {[%clk 0:00:46]} 39. Rf7 {[%clk 0:00:42]}  Rc8 {[%clk 0:00:46]} 40. Rg7 {[%clk 0:00:39]}  h4 {[%clk 0:00:43]} 41. gxh4 {[%clk 0:00:38]}  gxh4 {[%clk 0:00:41]} 42. Rh7 {[%clk 0:00:38]}  Bd5 {[%clk 0:00:25]} 43. Rxh4 {[%clk 0:00:38]}  Rf8 {[%clk 0:00:20]} 44. Kd6 {[%clk 0:00:37]}  Ra8 {[%clk 0:00:18]} 45. Rh8 {[%clk 0:00:33]}  Rxh8 {[%clk 0:00:15]} 46. Bxh8 {[%clk 0:00:33]}  Kc8 {[%clk 0:00:15]} 47. Be5 {[%clk 0:00:32]}  a4 {[%clk 0:00:14]} 48. Kc5 {[%clk 0:00:32]}  a3 {[%clk 0:00:14]} 49. bxa3 {[%clk 0:00:32]}  bxa3 {[%clk 0:00:15]} 50. Kb4 {[%clk 0:00:32]}  a2 {[%clk 0:00:16]} 51. Ka3 {[%clk 0:00:33]}  Kb7 {[%clk 0:00:16]} 52. Kb2 {[%clk 0:00:33]}  Bc4 {[%clk 0:00:16]} 53. Ka1 {[%clk 0:00:33]}  Kc8 {[%clk 0:00:14]} 54. Kb2 {[%clk 0:00:32]}  Bd5 {[%clk 0:00:15]} 55. Ka1 {[%clk 0:00:31]}  Kd7 {[%clk 0:00:12]} 56. Kb2 {[%clk 0:00:29]}  Bb3 {[%clk 0:00:10]} 57. Kxb3 {[%clk 0:00:28]}  a1=Q {[%clk 0:00:10]} 58. Bxa1 {[%clk 0:00:28]}  Kxc7 {[%clk 0:00:10]} 59. Be5+ {[%clk 0:00:29]}  Kc6 {[%clk 0:00:11]} 60. Kc4 {[%clk 0:00:29]}  Kd7 {[%clk 0:00:11]} 61. Kc5 {[%clk 0:00:30]}  Ke7 {[%clk 0:00:12]} 62. Kc6 {[%clk 0:00:30]}  Kf7 {[%clk 0:00:13]} 63. Kd6 {[%clk 0:00:30]}  Kg6 {[%clk 0:00:14]} 64. Kxe6 {[%clk 0:00:31]} 1/2-1/2


[Site "https://www.chess.com"]

[Event "Titled Tuesday Blitz August 22 Early 2023"]
[White "Sadzikowski, Daniel"]
[Black "Dardha, Daniel"]
[WhiteFideId "1132253"]
[BlackFideId "240990"]
[WhiteElo "2645"]
[BlackElo "2938"]
[Result "0-1"]
[Round "7"]
[TimeControl "180+1"]
[Date "2023.08.22"]
[WhiteClock "0:00:00"]
[BlackClock "0:00:05"]
[Board "38"]

1. e4 {[%clk 0:03:00]}  c6 {[%clk 0:02:58]} 2. d4 {[%clk 0:03:00]}  d5 {[%clk 0:02:58]} 3. exd5 {[%clk 0:03:01]}  cxd5 {[%clk 0:02:58]} 4. Bd3 {[%clk 0:03:01]}  Nf6 {[%clk 0:02:57]} 5. h3 {[%clk 0:03:01]}  Nc6 {[%clk 0:02:57]} 6. c3 {[%clk 0:03:02]}  g6 {[%clk 0:02:56]} 7. Bf4 {[%clk 0:03:00]}  Bf5 {[%clk 0:02:55]} 8. Be2 {[%clk 0:03:00]}  h5 {[%clk 0:02:54]} 9. Nf3 {[%clk 0:02:59]}  e6 {[%clk 0:02:53]} 10. Nbd2 {[%clk 0:02:58]}  Bh6 {[%clk 0:02:46]} 11. Bxh6 {[%clk 0:02:52]}  Rxh6 {[%clk 0:02:47]} 12. Qb3 {[%clk 0:02:44]}  Qc7 {[%clk 0:02:38]} 13. c4 {[%clk 0:02:29]}  h4 {[%clk 0:02:34]} 14. Rc1 {[%clk 0:02:23]}  Qe7 {[%clk 0:02:21]} 15. O-O {[%clk 0:01:51]}  Kf8 {[%clk 0:02:11]} 16. Qe3 {[%clk 0:01:47]}  Kg7 {[%clk 0:02:08]} 17. a3 {[%clk 0:01:37]}  dxc4 {[%clk 0:02:02]} 18. Bxc4 {[%clk 0:01:37]}  Rd8 {[%clk 0:02:00]} 19. Rfe1 {[%clk 0:01:37]}  Nd5 {[%clk 0:01:55]} 20. Bxd5 {[%clk 0:01:33]}  Rxd5 {[%clk 0:01:56]} 21. Rc5 {[%clk 0:01:26]}  Qd8 {[%clk 0:01:23]} 22. Nc4 {[%clk 0:00:48]}  Nxd4 {[%clk 0:01:04]} 23. Rxd5 {[%clk 0:00:45]}  Nxf3+ {[%clk 0:01:04]} 24. Qxf3 {[%clk 0:00:46]}  exd5 {[%clk 0:01:03]} 25. Rd1 {[%clk 0:00:29]}  Be6 {[%clk 0:01:00]} 26. Qc3+ {[%clk 0:00:26]}  Qf6 {[%clk 0:00:59]} 27. Ne3 {[%clk 0:00:17]}  Rh5 {[%clk 0:00:49]} 28. Rd4 {[%clk 0:00:16]}  Qe5 {[%clk 0:00:30]} 29. Qd2 {[%clk 0:00:10]}  Qg5 {[%clk 0:00:24]} 30. Kf1 {[%clk 0:00:10]}  Rh8 {[%clk 0:00:19]} 31. Rb4 {[%clk 0:00:09]}  Rc8 {[%clk 0:00:17]} 32. Rxb7 {[%clk 0:00:07]}  Qe5 {[%clk 0:00:17]} 33. Rb4 {[%clk 0:00:07]}  Qh2 {[%clk 0:00:17]} 34. Ke2 {[%clk 0:00:06]}  Kg8 {[%clk 0:00:10]} 35. Rb3 {[%clk 0:00:06]}  d4 {[%clk 0:00:09]} 36. Qxd4 {[%clk 0:00:02]}  Bxb3 {[%clk 0:00:09]} 37. Ng4 {[%clk 0:00:03]}  Bc4+ {[%clk 0:00:08]} 38. Kf3 {[%clk 0:00:03]}  Qc7 {[%clk 0:00:04]} 39. Nf6+ {[%clk 0:00:03]}  Kf8 {[%clk 0:00:05]} 40. Nh7+ {[%clk 0:00:04]}  Ke7 {[%clk 0:00:04]} 41. Qf6+ {[%clk 0:00:03]}  Kd7 {[%clk 0:00:05]} 42. Qd4+ {[%clk 0:00:03]}  Qd6 {[%clk 0:00:05]} 43. Nf6+ {[%clk 0:00:00]}  Ke6 {[%clk 0:00:05]} 0-1


[Site "https://www.chess.com"]

[Event "Titled Tuesday Blitz August 22 Early 2023"]
[White "Aaditya Dhingra"]
[Black "Piorun, Kacper"]
[WhiteFideId "25678191"]
[BlackFideId "1130420"]
[WhiteElo "2644"]
[BlackElo "2840"]
[Result "0-1"]
[Round "7"]
[TimeControl "180+1"]
[Date "2023.08.22"]
[WhiteClock "0:00:17"]
[BlackClock "0:00:17"]
[Board "40"]

1. d4 {[%clk 0:03:00]}  Nf6 {[%clk 0:02:59]} 2. c4 {[%clk 0:02:59]}  e6 {[%clk 0:02:59]} 3. Nf3 {[%clk 0:02:57]}  b6 {[%clk 0:02:59]} 4. g3 {[%clk 0:02:56]}  Ba6 {[%clk 0:02:59]} 5. b3 {[%clk 0:02:55]}  Bb4+ {[%clk 0:02:56]} 6. Bd2 {[%clk 0:02:55]}  Be7 {[%clk 0:02:56]} 7. Bg2 {[%clk 0:02:54]}  O-O {[%clk 0:02:56]} 8. Nc3 {[%clk 0:02:52]}  d5 {[%clk 0:02:55]} 9. cxd5 {[%clk 0:02:50]}  exd5 {[%clk 0:02:55]} 10. O-O {[%clk 0:02:49]}  Re8 {[%clk 0:02:55]} 11. Rc1 {[%clk 0:02:48]}  Ba3 {[%clk 0:02:49]} 12. Rc2 {[%clk 0:02:46]}  Nbd7 {[%clk 0:02:39]} 13. Bf4 {[%clk 0:02:41]}  Nf8 {[%clk 0:02:26]} 14. Ne5 {[%clk 0:02:31]}  Ne6 {[%clk 0:02:14]} 15. Bc1 {[%clk 0:02:23]}  Bxc1 {[%clk 0:02:02]} 16. Rxc1 {[%clk 0:02:20]}  Bb7 {[%clk 0:01:59]} 17. e3 {[%clk 0:02:17]}  c5 {[%clk 0:01:57]} 18. dxc5 {[%clk 0:02:14]}  bxc5 {[%clk 0:01:53]} 19. Na4 {[%clk 0:02:04]}  Qe7 {[%clk 0:01:45]} 20. Qd2 {[%clk 0:01:56]}  Rac8 {[%clk 0:01:27]} 21. Rfd1 {[%clk 0:01:53]}  Ng5 {[%clk 0:01:22]} 22. Nd3 {[%clk 0:01:47]}  d4 {[%clk 0:01:17]} 23. Naxc5 {[%clk 0:01:23]}  Bxg2 {[%clk 0:01:15]} 24. Kxg2 {[%clk 0:01:22]}  dxe3 {[%clk 0:01:04]} 25. Qxe3 {[%clk 0:01:21]}  Qxe3 {[%clk 0:01:00]} 26. fxe3 {[%clk 0:01:21]}  Rxe3 {[%clk 0:01:01]} 27. Re1 {[%clk 0:01:18]}  Rxe1 {[%clk 0:00:56]} 28. Rxe1 {[%clk 0:01:18]}  Kf8 {[%clk 0:00:43]} 29. h4 {[%clk 0:01:17]}  Ne6 {[%clk 0:00:43]} 30. b4 {[%clk 0:01:09]}  Nd4 {[%clk 0:00:37]} 31. Ne5 {[%clk 0:01:00]}  h5 {[%clk 0:00:35]} 32. Rd1 {[%clk 0:00:57]}  Nf5 {[%clk 0:00:34]} 33. Rd3 {[%clk 0:00:53]}  Kg8 {[%clk 0:00:32]} 34. a3 {[%clk 0:00:51]}  Re8 {[%clk 0:00:31]} 35. Nc6 {[%clk 0:00:44]}  Re2+ {[%clk 0:00:30]} 36. Kf1 {[%clk 0:00:44]}  Ra2 {[%clk 0:00:23]} 37. Nxa7 {[%clk 0:00:43]}  Ng4 {[%clk 0:00:22]} 38. Nb5 {[%clk 0:00:31]}  Nfe3+ {[%clk 0:00:19]} 39. Ke1 {[%clk 0:00:30]}  Ng2+ {[%clk 0:00:17]} 40. Kf1 {[%clk 0:00:25]}  Rf2+ {[%clk 0:00:16]} 41. Kg1 {[%clk 0:00:24]}  Ne1 {[%clk 0:00:16]} 42. Rd8+ {[%clk 0:00:21]}  Kh7 {[%clk 0:00:16]} 43. Nd3 {[%clk 0:00:20]}  Nf3+ {[%clk 0:00:16]} 44. Kh1 {[%clk 0:00:17]}  Rh2# {[%clk 0:00:17]} 0-1


[Site "https://www.chess.com"]

[Event "Titled Tuesday Blitz August 22 Early 2023"]
[White "Pakleza, Zbigniew"]
[Black "Turayev, Shahruh"]
[WhiteFideId "1119290"]
[BlackFideId "14003856"]
[WhiteElo "2835"]
[BlackElo "2635"]
[Result "1-0"]
[Round "7"]
[TimeControl "180+1"]
[Date "2023.08.22"]
[WhiteClock "0:00:04"]
[BlackClock "0:00:02"]
[Board "42"]

1. d4 {[%clk 0:03:00]}  Nf6 {[%clk 0:02:54]} 2. Nf3 {[%clk 0:03:01]}  d5 {[%clk 0:02:54]} 3. Bf4 {[%clk 0:03:01]}  c5 {[%clk 0:02:54]} 4. c3 {[%clk 0:03:01]}  Nc6 {[%clk 0:02:55]} 5. Nbd2 {[%clk 0:03:01]}  cxd4 {[%clk 0:02:55]} 6. cxd4 {[%clk 0:03:02]}  Bf5 {[%clk 0:02:54]} 7. e3 {[%clk 0:03:01]}  e6 {[%clk 0:02:54]} 8. Qb3 {[%clk 0:03:02]}  Bb4 {[%clk 0:02:46]} 9. a3 {[%clk 0:02:56]}  Qa5 {[%clk 0:02:41]} 10. Rd1 {[%clk 0:02:39]}  Bxd2+ {[%clk 0:02:35]} 11. Nxd2 {[%clk 0:02:40]}  O-O {[%clk 0:02:35]} 12. Qxb7 {[%clk 0:02:28]}  Rfc8 {[%clk 0:02:03]} 13. Qa6 {[%clk 0:01:57]}  Qd8 {[%clk 0:01:50]} 14. b4 {[%clk 0:01:41]}  Nh5 {[%clk 0:01:30]} 15. Bg3 {[%clk 0:01:26]}  Nxg3 {[%clk 0:01:18]} 16. hxg3 {[%clk 0:01:27]}  e5 {[%clk 0:01:17]} 17. Bb5 {[%clk 0:01:19]}  exd4 {[%clk 0:00:49]} 18. Bxc6 {[%clk 0:01:17]}  dxe3 {[%clk 0:00:49]} 19. fxe3 {[%clk 0:00:38]}  Qd6 {[%clk 0:00:45]} 20. O-O {[%clk 0:00:20]}  Rxc6 {[%clk 0:00:42]} 21. Qb7 {[%clk 0:00:20]}  Rb8 {[%clk 0:00:41]} 22. Qxa7 {[%clk 0:00:20]}  Bg6 {[%clk 0:00:28]} 23. Rf4 {[%clk 0:00:16]}  Rbc8 {[%clk 0:00:26]} 24. Nf1 {[%clk 0:00:11]}  h6 {[%clk 0:00:24]} 25. Qd4 {[%clk 0:00:09]}  Rc2 {[%clk 0:00:24]} 26. Qxd5 {[%clk 0:00:08]}  Qe7 {[%clk 0:00:20]} 27. Rd2 {[%clk 0:00:05]}  Rc1 {[%clk 0:00:19]} 28. Kf2 {[%clk 0:00:06]}  Ra1 {[%clk 0:00:15]} 29. Rc4 {[%clk 0:00:04]}  Re8 {[%clk 0:00:14]} 30. Rf4 {[%clk 0:00:04]}  Kh7 {[%clk 0:00:13]} 31. Qd4 {[%clk 0:00:04]}  Rc8 {[%clk 0:00:13]} 32. Qxa1 {[%clk 0:00:04]}  Qb7 {[%clk 0:00:06]} 33. Qd4 {[%clk 0:00:03]}  Rc1 {[%clk 0:00:06]} 34. e4 {[%clk 0:00:04]}  Qa6 {[%clk 0:00:06]} 35. Qd3 {[%clk 0:00:03]}  Qb7 {[%clk 0:00:04]} 36. Ne3 {[%clk 0:00:04]}  Ra1 {[%clk 0:00:03]} 37. Nf5 {[%clk 0:00:04]}  Qb6+ {[%clk 0:00:02]} 38. Qd4 {[%clk 0:00:04]}  Qb8 {[%clk 0:00:02]} 39. Qxg7# {[%clk 0:00:04]} 1-0


[Site "https://www.chess.com"]